[Event "Czech Open-E Teams 2022"]
[Site "Pardubice"]
[Date "2022.07.16"]
[Round "4.35"]
[White "Garsky, Vladyslav"]
[Black "Pokorny, Petr"]
[Result "1/2-1/2"]
[ECO "A06"]
[WhiteElo "1884"]
[BlackElo "2139"]
[Annotator "ChessBase"]
[PlyCount "80"]
[EventDate "2022.07.14"]
[EventType "team-tourn"]
[EventCountry "CZE"]
[SourceTitle "playchess.com"]
[Source "ChessBase"]
[SourceQuality "1"]
[TimeControl "5400+30"]

1. Nf3 {[%emt 0:01:55]} d5 {[%emt 0:00:06]} 2. g3 {[%emt 0:00:06]} c6 {[%emt 0:00:19]} 3. Bg2 {[%emt 0:00:04]} Bg4 {[%emt 0:00:17]} 4. O-O {[%emt 0:00:12]} Nd7 {[%emt 0:00:15]} 5. h3 {[%emt 0:00:04]} Bh5 {[%emt 0:00:39]} 6. d3 {[%emt 0:00:04]} Ngf6 {[%emt 0:01:42]} 7. Nbd2 {[%emt 0:01:08]} e5 {[%emt 0:01:05]} 8. e4 {[%emt 0:00:20]} dxe4 {[%emt 0:01:04]} 9. dxe4 {[%emt 0:00:01]} Bc5 {[%emt 0:01:14]} 10. Qe1 {[%emt 0:00:24]} O-O {[%emt 0:00:58]} 11. Nh4 {[%emt 0:07:58]} Re8 {[%emt 0:02:50]} 12. Nc4 {[%emt 0:01:01]} Qc7 {[%emt 0:01:59]} 13. Ne3 {[%emt 0:01:39]} Nf8 {[%emt 0:05:31]} 14. b4 {[%emt 0:04:47]} Bb6 {[%emt 0:01:04]} 15. Nc4 {[%emt 0:00:12]} Ne6 {[%emt 0:01:13]} 16. Nf5 {[%emt 0:00:38]} Rad8 {[%emt 0:04:34]} 17. Bd2 {[%emt 0:03:30]} Bg6 {[%emt 0:04:54]} 18. c3 {[%emt 0:01:32]} Qb8 {[%emt 0:07:30]} 19. a4 {[%emt 0:04:11]} Bc7 {[%emt 0:02:25]} 20. a5 {[%emt 0:00:01]} Rd7 {[%emt 0:04:03]} 21. Qe2 {[%emt 0:00:34]} Red8 {[%emt 0:00:19]} 22. h4 {[%emt 0:04:06]} Bh5 {[%emt 0:04:06]} 23. f3 {[%emt 0:00:39]} Bg6 {[%emt 0:04:38]} 24. Be3 {[%emt 0:05:27]} Ne8 {[%emt 0:02:15]} 25. g4 {[%emt 0:01:25]} f6 {[%emt 0:02:19]} 26. Rfd1 {[%emt 0:01:25]} Nd6 {[%emt 0:03:51]} 27. Ncxd6 {[%emt 0:01:09]} Bxd6 {[%emt 0:00:06]} 28. Rd2 {[%emt 0:01:21]} Bf8 {[%emt 0:01:58]} 29. Rad1 {[%emt 0:00:28]} Rxd2 {[%emt 0:03:29]} 30. Rxd2 {[%emt 0:00:19]} Rxd2 {[%emt 0:00:05]} 31. Qxd2 {[%emt 0:00:04]} Bf7 {[%emt 0:00:54]} 32. Qd7 {[%emt 0:01:43]} Qc7 {[%emt 0:01:18]} 33. Qd2 {[%emt 0:02:49]} c5 {[%emt 0:02:40]} 34. Bf1 {[%emt 0:00:50]} cxb4 {[%emt 0:03:08]} 35. cxb4 {[%emt 0:02:18]} a6 {[%emt 0:05:35]} 36. Bb6 {[%emt 0:05:42]} Qc6 {[%emt 0:00:32]} 37. Qd5 {[%emt 0:00:04]} Nd4 {[%emt 0:03:44]} 38. Nxd4 {[%emt 0:00:39]} Bxd5 {[%emt 0:00:04]} 39. Nxc6 {[%emt 0:00:10]} Bxc6 {[%emt 0:00:06]} 40. Bc4+ {[%emt 0:00:08]} Kh8 {[%emt 0:00:02]} 1/2-1/2

[Event "Czech Open-E Teams 2022"]
[Site "Pardubice"]
[Date "2022.07.16"]
[Round "4.36"]
[White "Hruska, Jan"]
[Black "Goroshkova, Iryna"]
[Result "1-0"]
[ECO "A10"]
[WhiteElo "2145"]
[BlackElo "1468"]
[Annotator "ChessBase"]
[PlyCount "93"]
[EventDate "2022.07.14"]
[EventType "team-tourn"]
[EventCountry "CZE"]
[SourceTitle "playchess.com"]
[Source "ChessBase"]
[SourceQuality "1"]
[TimeControl "5400+30"]

1. c4 {[%emt 0:00:03]} d5 {[%emt 0:03:14]} 2. cxd5 {[%emt 0:00:13]} Qxd5 {[%emt 0:00:03]} 3. Nc3 {[%emt 0:00:12]} Qd8 {[%emt 0:01:00]} 4. d4 {[%emt 0:00:10]} Nf6 {[%emt 0:04:15]} 5. g3 {[%emt 0:01:15]} e6 {[%emt 0:01:03]} 6. Bg2 {[%emt 0:01:07]} Nc6 {[%emt 0:00:59]} 7. e3 {[%emt 0:00:21]} Be7 {[%emt 0:02:10]} 8. Nge2 {[%emt 0:00:51]} O-O {[%emt 0:03:00]} 9. O-O {[%emt 0:00:09]} Nd5 {[%emt 0:03:18]} 10. e4 {[%emt 0:05:34]} Nb6 {[%emt 0:00:27]} 11. b3 {[%emt 0:00:47]} f6 {[%emt 0:03:00]} 12. Be3 {[%emt 0:01:04]} Re8 {[%emt 0:05:56]} 13. a4 {[%emt 0:04:20]} Bb4 {[%emt 0:05:07]} 14. Rc1 {[%emt 0:05:26]} e5 {[%emt 0:01:36]} 15. d5 {[%emt 0:00:58]} Ne7 {[%emt 0:00:44]} 16. Na2 {[%emt 0:08:18]} Bd6 {[%emt 0:00:40]} 17. Qd3 {[%emt 0:04:08]} Bg4 {[%emt 0:01:06]} 18. f3 {[%emt 0:01:22]} Bh5 {[%emt 0:00:24]} 19. g4 {[%emt 0:02:44]} Bf7 {[%emt 0:00:08]} 20. a5 {[%emt 0:04:47]} Nd7 {[%emt 0:00:21]} 21. Rfd1 {[%emt 0:01:17]} a6 {[%emt 0:03:19]} 22. Rc2 {[%emt 0:04:05]} Nf8 {[%emt 0:03:02]} 23. h4 {[%emt 0:10:10]} Nfg6 {[%emt 0:00:43]} 24. h5 {[%emt 0:07:51]} Nf4 {[%emt 0:00:13]} 25. Nxf4 {[%emt 0:01:26]} exf4 {[%emt 0:00:07]} 26. Bd4 {[%emt 0:00:18]} Be5 {[%emt 0:01:18]} 27. Qc3 {[%emt 0:05:47]} Bd6 {[%emt 0:07:35]} 28. h6 {[%emt 0:00:51]} Ng6 {[%emt 0:01:24]} 29. hxg7 {[%emt 0:01:42]} Ne5 {[%emt 0:00:46]} 30. Nb4 {[%emt 0:00:49]} Rc8 {[%emt 0:01:41]} 31. Nd3 {[%emt 0:00:45]} Kxg7 {[%emt 0:01:03]} 32. Nxf4 {[%emt 0:01:44]} c6 {[%emt 0:01:38]} 33. g5 {[%emt 0:02:38]} cxd5 {[%emt 0:00:53]} 34. Qxc8 {[%emt 0:01:44]} Qxc8 {[%emt 0:00:02]} 35. Rxc8 {[%emt 0:00:05]} Rxc8 {[%emt 0:00:07]} 36. gxf6+ {[%emt 0:00:14]} Kxf6 {[%emt 0:00:13]} 37. Nd3 {[%emt 0:01:52]} dxe4 {[%emt 0:01:12]} 38. fxe4 {[%emt 0:00:12]} Re8 {[%emt 0:03:09]} 39. Rf1+ {[%emt 0:00:40]} Kg7 {[%emt 0:00:35]} 40. Rf5 {[%emt 0:01:06]} Bxb3 {[%emt 0:02:08]} 41. Bxe5+ {[%emt 0:01:20]} Bxe5 {[%emt 0:00:35]} 42. Rxe5 {[%emt 0:02:18]} Rxe5 {[%emt 0:00:20]} 43. Nxe5 {[%emt 0:00:00]} Ba4 {[%emt 0:02:02]} 44. Kf2 {[%emt 0:01:06]} Bc6 {[%emt 0:01:12]} 45. Ke3 {[%emt 0:00:56]} h5 {[%emt 0:01:23]} 46. Nxc6 {[%emt 0:00:40]} bxc6 {[%emt 0:00:13]} 47. Kd4 {[%emt 0:00:07]} 1-0

[Event "Czech Open-E Teams 2022"]
[Site "Pardubice"]
[Date "2022.07.16"]
[Round "4.37"]
[White "Kostka, Vit"]
[Black "Jirasek, Pavel"]
[Result "0-1"]
[ECO "B31"]
[WhiteElo "2168"]
[BlackElo "2290"]
[Annotator "ChessBase"]
[PlyCount "86"]
[EventDate "2022.07.14"]
[EventType "team-tourn"]
[EventCountry "CZE"]
[SourceTitle "playchess.com"]
[Source "ChessBase"]
[SourceQuality "1"]
[TimeControl "5400+30"]

1. e4 {[%emt 0:00:06]} c5 {[%emt 0:00:07]} 2. Nf3 {[%emt 0:00:04]} Nc6 {[%emt 0:00:05]} 3. Bb5 {[%emt 0:00:05]} g6 {[%emt 0:00:30]} 4. Bxc6 {[%emt 0:00:05]} dxc6 {[%emt 0:00:05]} 5. h3 {[%emt 0:00:03]} Bg7 {[%emt 0:00:08]} 6. d3 {[%emt 0:00:04]} Nf6 {[%emt 0:00:26]} 7. Nc3 {[%emt 0:00:07]} O-O {[%emt 0:00:10]} 8. Be3 {[%emt 0:00:06]} b6 {[%emt 0:00:03]} 9. Qd2 {[%emt 0:00:03]} e5 {[%emt 0:02:29]} 10. Bh6 {[%emt 0:01:24]} Qd6 {[%emt 0:00:10]} 11. O-O-O {[%emt 0:01:38]} Re8 {[%emt 0:03:02]} 12. Bxg7 {[%emt 0:00:10]} Kxg7 {[%emt 0:00:04]} 13. h4 {[%emt 0:00:31]} Bg4 {[%emt 0:01:11]} 14. Rdg1 {[%emt 0:00:21]} Nh5 {[%emt 0:04:07]} 15. Ne2 {[%emt 0:05:24]} Rad8 {[%emt 0:10:24]} 16. Nh2 {[%emt 0:06:53]} Bxe2 {[%emt 0:00:05]} 17. Qxe2 {[%emt 0:00:10]} c4 {[%emt 0:00:15]} 18. dxc4 {[%emt 0:03:24]} Nf4 {[%emt 0:00:06]} 19. Qe3 {[%emt 0:02:48]} Qd4 {[%emt 0:00:31]} 20. Rd1 {[%emt 0:14:03]} Qxe3+ {[%emt 0:02:02]} 21. fxe3 {[%emt 0:00:12]} Ne2+ {[%emt 0:00:52]} 22. Kb1 {[%emt 0:00:09]} Ng3 {[%emt 0:00:04]} 23. Rhe1 {[%emt 0:01:35]} Nxe4 {[%emt 0:00:28]} 24. Nf3 {[%emt 0:00:18]} f6 {[%emt 0:00:09]} 25. c3 {[%emt 0:01:14]} Kf7 {[%emt 0:02:29]} 26. Kc2 {[%emt 0:00:31]} Ke6 {[%emt 0:00:05]} 27. a4 {[%emt 0:04:36]} Nf2 {[%emt 0:02:43]} 28. Ra1 {[%emt 0:02:47]} c5 {[%emt 0:02:47]} 29. a5 {[%emt 0:00:57]} e4 {[%emt 0:00:15]} 30. Nd2 {[%emt 0:00:59]} f5 {[%emt 0:00:12]} 31. axb6 {[%emt 0:00:16]} axb6 {[%emt 0:00:04]} 32. Ra6 {[%emt 0:00:21]} Rd6 {[%emt 0:00:42]} 33. Ra7 {[%emt 0:03:08]} Red8 {[%emt 0:01:47]} 34. Re2 {[%emt 0:03:29]} Ng4 {[%emt 0:00:05]} 35. Rxh7 {[%emt 0:01:09]} Nxe3+ {[%emt 0:00:06]} 36. Kc1 {[%emt 0:00:15]} Nf1 {[%emt 0:04:59]} 37. Nxf1 {[%emt 0:05:18]} Rd1+ {[%emt 0:00:05]} 38. Kc2 {[%emt 0:00:04]} Rxf1 {[%emt 0:00:06]} 39. h5 {[%emt 0:04:09]} gxh5 {[%emt 0:02:03]} 40. Rxh5 {[%emt 0:00:37]} Rg8 {[%emt 0:00:37]} 41. b4 {[%emt 0:08:14]} Ra8 {[%emt 0:04:20]} 42. Kd2 {[%emt 0:03:45]} Ra2+ {[%emt 0:01:13]} 43. Ke3 {[%emt 0:00:29]} f4+ {[%emt 0:00:06]} 0-1

[Event "Czech Open-E Teams 2022"]
[Site "Pardubice"]
[Date "2022.07.16"]
[Round "4.38"]
[White "Szucs, Matyas"]
[Black "Lojek, Marek"]
[Result "1/2-1/2"]
[ECO "C54"]
[WhiteElo "2133"]
[BlackElo "2142"]
[Annotator "ChessBase"]
[PlyCount "106"]
[EventDate "2022.07.14"]
[EventType "team-tourn"]
[EventCountry "CZE"]
[SourceTitle "playchess.com"]
[Source "ChessBase"]
[SourceQuality "1"]
[TimeControl "5400+30"]

1. e4 {[%emt 0:00:03]} e5 {[%emt 0:00:11]} 2. Nf3 {[%emt 0:00:06]} Nc6 {[%emt 0:00:08]} 3. Bc4 {[%emt 0:00:14]} Bc5 {[%emt 0:00:54]} 4. c3 {[%emt 0:00:25]} Nf6 {[%emt 0:00:07]} 5. d3 {[%emt 0:00:02]} O-O {[%emt 0:01:26]} 6. O-O {[%emt 0:00:45]} a6 {[%emt 0:01:33]} 7. a4 {[%emt 0:00:13]} d5 {[%emt 0:02:29]} 8. exd5 {[%emt 0:00:31]} Nxd5 {[%emt 0:00:07]} 9. a5 {[%emt 0:02:37]} Bf5 {[%emt 0:04:16]} 10. Re1 {[%emt 0:02:26]} b5 {[%emt 0:14:22]} 11. axb6 {[%emt 0:24:52]} Nxb6 {[%emt 0:00:12]} 12. Bg5 {[%emt 0:08:04]} Be7 {[%emt 0:06:33]} 13. Bxe7 {[%emt 0:01:30]} Qxe7 {[%emt 0:00:12]} 14. Nbd2 {[%emt 0:07:19]} Nxc4 {[%emt 0:13:25]} 15. Nxc4 {[%emt 0:03:37]} Bg4 {[%emt 0:00:09]} 16. h3 {[%emt 0:01:24]} Bxf3 {[%emt 0:02:53]} 17. Qxf3 {[%emt 0:00:02]} Qe6 {[%emt 0:01:20]} 18. Na5 {[%emt 0:06:15]} Nxa5 19. Rxa5 Qb3 {[%emt 0:05:02]} 20. Re2 {[%emt 0:02:46]} Rad8 {[%emt 0:13:48]} 21. Raxe5 {[%emt 0:04:48]} Qd1+ 22. Kh2 Rxd3 {[%emt 0:03:07]} 23. Qf4 {[%emt 0:03:09]} Rdd8 {[%emt 0:03:08]} 24. Re7 {[%emt 0:04:56]} Rd7 {[%emt 0:04:52]} 25. Rxd7 {[%emt 0:06:23]} Qxd7 {[%emt 0:00:03]} 26. Rd2 {[%emt 0:00:16]} Qc6 {[%emt 0:01:36]} 27. Rd4 {[%emt 0:00:27]} h6 {[%emt 0:03:23]} 28. Rc4 {[%emt 0:00:46]} Qb6 {[%emt 0:00:53]} 29. b4 {[%emt 0:01:01]} c6 {[%emt 0:00:41]} 30. Qf3 {[%emt 0:04:12]} Rc8 {[%emt 0:01:27]} 31. Rc5 {[%emt 0:00:19]} Rc7 {[%emt 0:01:39]} 32. g3 {[%emt 0:01:54]} Rc8 {[%emt 0:01:10]} 33. Kg2 {[%emt 0:00:04]} Rc7 {[%emt 0:00:04]} 34. h4 {[%emt 0:00:36]} Rc8 {[%emt 0:04:01]} 35. Qe4 {[%emt 0:00:27]} Qb7 {[%emt 0:01:35]} 36. g4 {[%emt 0:07:42]} Qd7 {[%emt 0:01:05]} 37. Qf5 {[%emt 0:00:19]} Qb7 {[%emt 0:02:23]} 38. f4 {[%emt 0:03:31]} Re8 39. Kf3 a5 {[%emt 0:02:39]} 40. bxa5 {[%emt 0:03:56]} Qb2 {[%emt 0:00:19]} 41. Qd3 {[%emt 0:00:46]} Qh2 {[%emt 0:02:49]} 42. Re5 {[%emt 0:00:18]} Rxe5 {[%emt 0:01:16]} 43. fxe5 {[%emt 0:00:13]} Qh3+ {[%emt 0:00:36]} 44. Ke2 {[%emt 0:01:02]} Qxg4+ {[%emt 0:00:15]} 45. Kd2 {[%emt 0:00:23]} Qf4+ {[%emt 0:00:55]} 46. Qe3 {[%emt 0:00:12]} Qc4 {[%emt 0:01:06]} 47. Qb6 {[%emt 0:00:21]} Qd5+ {[%emt 0:00:50]} 48. Kc2 {[%emt 0:00:55]} Qa2+ {[%emt 0:00:22]} 49. Kc1 {[%emt 0:00:10]} Qa1+ {[%emt 0:00:48]} 50. Kd2 {[%emt 0:00:01]} Qa2+ {[%emt 0:00:26]} 51. Ke3 {[%emt 0:00:58]} Qd5 {[%emt 0:00:46]} 52. Qc7 {[%emt 0:02:18]} Qc5+ {[%emt 0:00:15]} 53. Kd2 {[%emt 0:00:36]} Qf2+ {[%emt 0:01:00]} 1/2-1/2

[Event "Czech Open-E Teams 2022"]
[Site "Pardubice"]
[Date "2022.07.16"]
[Round "4.39"]
[White "Husek, Martin"]
[Black "Sedivy, Martin"]
[Result "1-0"]
[ECO "E50"]
[WhiteElo "2132"]
[BlackElo "2126"]
[Annotator "ChessBase"]
[PlyCount "87"]
[EventDate "2022.07.14"]
[EventType "team-tourn"]
[EventCountry "CZE"]
[SourceTitle "playchess.com"]
[Source "ChessBase"]
[SourceQuality "1"]
[TimeControl "5400+30"]

1. d4 {[%emt 0:07:50]} Nf6 {[%emt 0:00:29]} 2. c4 {[%emt 0:00:44]} e6 {[%emt 0:00:57]} 3. Nc3 {[%emt 0:00:44]} Bb4 {[%emt 0:00:09]} 4. e3 {[%emt 0:00:18]} O-O {[%emt 0:01:13]} 5. Nf3 {[%emt 0:00:11]} b6 {[%emt 0:00:07]} 6. Bd2 {[%emt 0:00:30]} Bb7 {[%emt 0:00:09]} 7. Bd3 {[%emt 0:00:09]} d6 {[%emt 0:00:39]} 8. O-O {[%emt 0:00:19]} Nbd7 {[%emt 0:00:09]} 9. a3 {[%emt 0:04:35]} Bxc3 {[%emt 0:00:06]} 10. Bxc3 {[%emt 0:00:06]} Ne4 {[%emt 0:00:58]} 11. Be1 {[%emt 0:02:20]} f5 {[%emt 0:04:23]} 12. Qc2 {[%emt 0:04:17]} e5 {[%emt 0:17:39]} 13. Nd2 {[%emt 0:03:48]} Nxd2 {[%emt 0:03:56]} 14. Bxd2 {[%emt 0:00:19]} e4 {[%emt 0:04:49]} 15. Be2 {[%emt 0:00:09]} Qe7 {[%emt 0:03:34]} 16. b4 {[%emt 0:02:22]} c5 {[%emt 0:02:33]} 17. bxc5 {[%emt 0:27:50]} dxc5 {[%emt 0:00:12]} 18. d5 {[%emt 0:02:22]} Ne5 {[%emt 0:02:52]} 19. f4 {[%emt 0:00:53]} exf3 {[%emt 0:01:42]} 20. gxf3 {[%emt 0:00:11]} f4 {[%emt 0:00:28]} 21. exf4 {[%emt 0:01:14]} Ng6 {[%emt 0:01:08]} 22. Bd3 {[%emt 0:06:44]} Nxf4 {[%emt 0:01:47]} 23. Bxh7+ {[%emt 0:03:29]} Kh8 {[%emt 0:00:05]} 24. Kh1 {[%emt 0:06:41]} Qh4 {[%emt 0:11:25]} 25. Be4 {[%emt 0:00:32]} Rae8 {[%emt 0:02:30]} 26. Rg1 {[%emt 0:04:56]} Nh3 {[%emt 0:00:14]} 27. Be1 {[%emt 0:00:15]} Qh5 {[%emt 0:02:43]} 28. Rg3 {[%emt 0:02:46]} Re5 {[%emt 0:05:15]} 29. Bc3 {[%emt 0:13:39]} Rg5 {[%emt 0:00:09]} 30. Rxg5 {[%emt 0:01:05]} Qxg5 {[%emt 0:01:22]} 31. Qg2 {[%emt 0:00:41]} Qxg2+ {[%emt 0:00:16]} 32. Kxg2 {[%emt 0:00:04]} Nf4+ {[%emt 0:00:07]} 33. Kf2 {[%emt 0:00:10]} Ba6 {[%emt 0:00:30]} 34. Ke3 {[%emt 0:00:08]} Bxc4 {[%emt 0:00:24]} 35. Rg1 {[%emt 0:00:39]} Nh5 {[%emt 0:00:24]} 36. Rg4 {[%emt 0:02:35]} Nf6 {[%emt 0:00:33]} 37. Rh4+ {[%emt 0:00:07]} Kg8 {[%emt 0:00:13]} 38. Bxf6 {[%emt 0:00:25]} Rxf6 {[%emt 0:00:07]} 39. Bh7+ {[%emt 0:00:08]} Kh8 {[%emt 0:00:07]} 40. Bc2+ {[%emt 0:00:13]} Rh6 {[%emt 0:00:09]} 41. Rxc4 {[%emt 0:00:06]} Rxh2 {[%emt 0:00:05]} 42. d6 {[%emt 0:00:25]} Rh6 {[%emt 0:00:14]} 43. d7 {[%emt 0:00:05]} Rd6 {[%emt 0:00:03]} 44. Re4 {[%emt 0:00:06]} 1-0

[Event "Czech Open-E Teams 2022"]
[Site "Pardubice"]
[Date "2022.07.16"]
[Round "4.40"]
[White "Flasar, Jaroslav"]
[Black "Walica, Roman"]
[Result "0-1"]
[ECO "C55"]
[WhiteElo "2044"]
[BlackElo "2123"]
[Annotator "ChessBase"]
[PlyCount "84"]
[EventDate "2022.07.14"]
[EventType "team-tourn"]
[EventCountry "CZE"]
[SourceTitle "playchess.com"]
[Source "ChessBase"]
[SourceQuality "1"]
[TimeControl "5400+30"]

1. e4 {[%emt 0:00:05]} e5 {[%emt 0:00:03]} 2. Nf3 {[%emt 0:00:23]} Nc6 {[%emt 0:00:05]} 3. d4 {[%emt 0:00:21]} exd4 {[%emt 0:00:10]} 4. Bc4 {[%emt 0:00:05]} Nf6 {[%emt 0:00:04]} 5. e5 {[%emt 0:00:04]} d5 {[%emt 0:00:04]} 6. Bb5 {[%emt 0:00:03]} Ne4 {[%emt 0:00:06]} 7. Nxd4 {[%emt 0:00:05]} Bc5 {[%emt 0:01:37]} 8. Be3 {[%emt 0:02:16]} Bd7 {[%emt 0:05:07]} 9. Bxc6 {[%emt 0:03:44]} bxc6 {[%emt 0:00:06]} 10. O-O {[%emt 0:01:55]} O-O {[%emt 0:00:52]} 11. f3 {[%emt 0:00:23]} Ng5 {[%emt 0:00:09]} 12. Kh1 {[%emt 0:00:32]} Bb6 {[%emt 0:01:12]} 13. Nd2 {[%emt 0:03:16]} c5 {[%emt 0:05:01]} 14. N4b3 {[%emt 0:02:32]} d4 {[%emt 0:01:40]} 15. Bf2 {[%emt 0:00:09]} Ne6 {[%emt 0:05:14]} 16. Ne4 {[%emt 0:03:10]} Bc6 {[%emt 0:14:19]} 17. Nbd2 {[%emt 0:04:01]} Nf4 {[%emt 0:07:21]} 18. Bg3 {[%emt 0:04:37]} Nd5 {[%emt 0:00:12]} 19. Qe2 {[%emt 0:00:33]} Qd7 {[%emt 0:10:34]} 20. c4 {[%emt 0:05:31]} Ne3 {[%emt 0:03:52]} 21. Rfc1 {[%emt 0:02:10]} a5 {[%emt 0:11:10]} 22. Bf2 {[%emt 0:02:48]} Nf5 {[%emt 0:01:47]} 23. f4 {[%emt 0:00:15]} Rae8 {[%emt 0:07:52]} 24. Qd3 {[%emt 0:02:45]} f6 {[%emt 0:05:35]} 25. Nf3 {[%emt 0:04:28]} Nh6 {[%emt 0:04:58]} 26. Re1 {[%emt 0:03:41]} Qf5 {[%emt 0:01:54]} 27. Bg3 {[%emt 0:00:20]} Ng4 {[%emt 0:07:12]} 28. Nxc5 {[%emt 0:06:58]} fxe5 {[%emt 0:00:03]} 29. Qa3 {[%emt 0:08:07]} e4 {[%emt 0:01:41]} 30. Nxd4 {[%emt 0:00:36]} Bxc5 {[%emt 0:00:11]} 31. Nxf5 {[%emt 0:01:09]} Bxa3 {[%emt 0:00:01]} 32. Nd4 {[%emt 0:00:23]} Bxb2 {[%emt 0:00:12]} 33. Nxc6 {[%emt 0:00:04]} Bxa1 {[%emt 0:00:10]} 34. Rxa1 {[%emt 0:00:05]} e3 {[%emt 0:00:19]} 35. Re1 {[%emt 0:01:13]} Nf2+ {[%emt 0:01:15]} 36. Kg1 {[%emt 0:00:18]} Nd3 {[%emt 0:00:08]} 37. Rd1 {[%emt 0:00:50]} Nxf4 {[%emt 0:00:08]} 38. Re1 {[%emt 0:00:07]} Nd3 {[%emt 0:02:08]} 39. Re2 {[%emt 0:00:10]} Re4 {[%emt 0:03:10]} 40. Nxa5 {[%emt 0:00:36]} Nf4 {[%emt 0:00:39]} 41. Rb2 {[%emt 0:01:24]} e2 {[%emt 0:00:26]} 42. Rb1 {[%emt 0:00:02]} Nd3 {[%emt 0:00:26]} 0-1

[Event "Czech Open-E Teams 2022"]
[Site "Pardubice"]
[Date "2022.07.16"]
[Round "4.42"]
[White "Krmela, Ales"]
[Black "Sodoma, Jan"]
[Result "0-1"]
[ECO "C27"]
[WhiteElo "2065"]
[BlackElo "2312"]
[Annotator "ChessBase"]
[PlyCount "54"]
[EventDate "2022.07.14"]
[EventType "team-tourn"]
[EventCountry "CZE"]
[SourceTitle "playchess.com"]
[Source "ChessBase"]
[SourceQuality "1"]
[TimeControl "5400+30"]

1. e4 e5 {[%emt 0:19:37]} 2. Nc3 {[%emt 0:00:20]} Nf6 {[%emt 0:00:06]} 3. Bc4 {[%emt 0:00:22]} Nxe4 {[%emt 0:00:17]} 4. Nxe4 {[%emt 0:00:25]} d5 {[%emt 0:00:10]} 5. Bd3 {[%emt 0:04:47]} dxe4 {[%emt 0:00:06]} 6. Bxe4 {[%emt 0:00:04]} Bc5 {[%emt 0:02:57]} 7. Qf3 {[%emt 0:40:11]} c6 {[%emt 0:03:32]} 8. Bf5 {[%emt 0:04:33]} Nd7 {[%emt 0:02:58]} 9. Ne2 {[%emt 0:02:22]} O-O {[%emt 0:02:36]} 10. d3 {[%emt 0:03:28]} Re8 {[%emt 0:04:47]} 11. h4 {[%emt 0:04:21]} Nf8 {[%emt 0:03:54]} 12. Ng3 {[%emt 0:13:12]} Ne6 {[%emt 0:00:32]} 13. Bg5 {[%emt 0:03:37]} Qb6 {[%emt 0:03:13]} 14. Ne4 {[%emt 0:04:07]} Be7 {[%emt 0:24:15]} 15. Bxh7+ {[%emt 0:10:03]} Kxh7 {[%emt 0:00:26]} 16. Qxf7 {[%emt 0:00:10]} Qd8 {[%emt 0:00:05]} 17. Bxe7 {[%emt 0:02:04]} Qxe7 {[%emt 0:00:23]} 18. Ng5+ {[%emt 0:00:15]} Kh6 {[%emt 0:00:32]} 19. Qf5 {[%emt 0:03:05]} g6 {[%emt 0:00:22]} 20. Qe4 {[%emt 0:00:22]} Qf6 {[%emt 0:02:02]} 21. g3 {[%emt 0:02:08]} Kg7 {[%emt 0:02:09]} 22. O-O-O {[%emt 0:00:36]} Nxg5 {[%emt 0:02:08]} 23. hxg5 {[%emt 0:00:06]} Qxg5+ {[%emt 0:00:05]} 24. Kb1 {[%emt 0:00:04]} Be6 {[%emt 0:00:50]} 25. b3 {[%emt 0:00:31]} Bd5 {[%emt 0:00:22]} 26. Qh4 {[%emt 0:01:05]} Qxh4 {[%emt 0:00:18]} 27. Rxh4 {[%emt 0:00:05]} Rh8 {[%emt 0:00:12]} 0-1

[Event "Czech Open-E Teams 2022"]
[Site "Pardubice"]
[Date "2022.07.16"]
[Round "4.43"]
[White "Vitak, Jiri"]
[Black "Opravil, Karel"]
[Result "1-0"]
[ECO "A40"]
[WhiteElo "2223"]
[BlackElo "2065"]
[Annotator "ChessBase"]
[PlyCount "130"]
[EventDate "2022.07.14"]
[EventType "team-tourn"]
[EventCountry "CZE"]
[SourceTitle "playchess.com"]
[Source "ChessBase"]
[SourceQuality "1"]
[TimeControl "5400+30"]

1. d4 {[%emt 0:02:21]} Nf6 {[%emt 0:00:18]} 2. c4 {[%emt 0:00:13]} e6 {[%emt 0:00:10]} 3. g3 {[%emt 0:00:07]} d5 {[%emt 0:00:35]} 4. Nf3 {[%emt 0:00:04]} Bb4+ {[%emt 0:00:39]} 5. Bd2 {[%emt 0:00:06]} Be7 {[%emt 0:00:08]} 6. Bg2 {[%emt 0:00:13]} O-O {[%emt 0:00:21]} 7. O-O {[%emt 0:00:30]} c6 {[%emt 0:00:29]} 8. Qc2 {[%emt 0:00:22]} b6 {[%emt 0:01:24]} 9. b3 {[%emt 0:00:53]} Bb7 {[%emt 0:00:22]} 10. Nc3 {[%emt 0:06:13]} Nbd7 {[%emt 0:01:48]} 11. e4 {[%emt 0:00:39]} Nxe4 {[%emt 0:01:41]} 12. Nxe4 {[%emt 0:00:14]} dxe4 {[%emt 0:00:06]} 13. Qxe4 {[%emt 0:00:08]} Nf6 {[%emt 0:00:37]} 14. Qe2 {[%emt 0:00:39]} c5 {[%emt 0:01:32]} 15. dxc5 {[%emt 0:00:53]} Bxc5 {[%emt 0:03:06]} 16. Rad1 {[%emt 0:00:18]} Qe7 {[%emt 0:00:37]} 17. Ne5 {[%emt 0:03:08]} Bxg2 {[%emt 0:00:53]} 18. Kxg2 {[%emt 0:00:07]} Qb7+ {[%emt 0:01:58]} 19. f3 {[%emt 0:07:16]} Rfd8 {[%emt 0:04:47]} 20. Bc3 {[%emt 0:02:29]} a5 {[%emt 0:05:30]} 21. Rd3 {[%emt 0:04:30]} Qc7 {[%emt 0:04:21]} 22. Rfd1 {[%emt 0:03:08]} Rxd3 {[%emt 0:05:25]} 23. Nxd3 {[%emt 0:00:32]} Be7 {[%emt 0:00:36]} 24. Nb2 {[%emt 0:01:20]} Rd8 {[%emt 0:04:52]} 25. Na4 {[%emt 0:00:45]} Rxd1 {[%emt 0:00:53]} 26. Qxd1 {[%emt 0:00:07]} Nd7 {[%emt 0:00:51]} 27. Bd4 {[%emt 0:04:32]} Bf6 {[%emt 0:03:31]} 28. Bf2 {[%emt 0:00:51]} Nc5 {[%emt 0:01:12]} 29. Nxc5 {[%emt 0:00:12]} bxc5 {[%emt 0:00:04]} 30. Qd2 {[%emt 0:01:18]} Be7 {[%emt 0:04:15]} 31. Be3 {[%emt 0:01:15]} Bd6 {[%emt 0:02:23]} 32. Qe1 {[%emt 0:01:25]} Be7 {[%emt 0:01:32]} 33. Bd2 {[%emt 0:00:22]} Bd8 {[%emt 0:00:10]} 34. Bc3 {[%emt 0:00:34]} h6 {[%emt 0:07:25]} 35. Qd2 {[%emt 0:00:39]} f6 {[%emt 0:02:22]} 36. Kf2 {[%emt 0:06:30]} Kf7 {[%emt 0:00:18]} 37. Ke2 {[%emt 0:00:07]} Ke8 {[%emt 0:02:36]} 38. Qd3 {[%emt 0:01:33]} Qd7 {[%emt 0:04:05]} 39. Qh7 {[%emt 0:02:04]} Qf7 {[%emt 0:02:43]} 40. Qe4 {[%emt 0:03:05]} Qd7 {[%emt 0:00:47]} 41. Qg4 {[%emt 0:14:39]} Bb6 {[%emt 0:02:55]} 42. Qg6+ {[%emt 0:01:04]} Kd8 {[%emt 0:02:13]} 43. Qh7 {[%emt 0:03:47]} Kc8 {[%emt 0:02:20]} 44. Qg8+ {[%emt 0:01:38]} Kb7 {[%emt 0:00:34]} 45. Qh7 {[%emt 0:01:14]} Kc8 {[%emt 0:00:46]} 46. Qe4 {[%emt 0:01:25]} Kb8 {[%emt 0:00:37]} 47. f4 {[%emt 0:02:47]} Bc7 {[%emt 0:00:59]} 48. h4 {[%emt 0:05:23]} Bd8 {[%emt 0:03:55]} 49. h5 {[%emt 0:02:47]} Qd6 {[%emt 0:00:36]} 50. Qd3 {[%emt 0:02:20]} Qxd3+ {[%emt 0:01:05]} 51. Kxd3 {[%emt 0:00:05]} Kb7 {[%emt 0:00:11]} 52. a3 Kc6 {[%emt 0:03:53]} 53. b4 {[%emt 0:04:01]} axb4 {[%emt 0:00:15]} 54. axb4 {[%emt 0:00:04]} Be7 {[%emt 0:01:03]} 55. b5+ {[%emt 0:00:13]} Kb6 {[%emt 0:00:58]} 56. g4 {[%emt 0:01:16]} Kc7 {[%emt 0:03:15]} 57. Ke4 {[%emt 0:00:37]} Kd6 {[%emt 0:01:00]} 58. Ba5 {[%emt 0:01:29]} f5+ {[%emt 0:03:10]} 59. gxf5 {[%emt 0:00:09]} exf5+ {[%emt 0:00:39]} 60. Kxf5 {[%emt 0:00:03]} Bf6 {[%emt 0:00:18]} 61. Bd2 {[%emt 0:00:34]} Bd4 {[%emt 0:01:37]} 62. Ke4 {[%emt 0:01:12]} Bf6 {[%emt 0:00:33]} 63. f5 {[%emt 0:00:16]} Bd4 {[%emt 0:01:04]} 64. Bf4+ {[%emt 0:00:07]} Kd7 {[%emt 0:00:08]} 65. Be5 {[%emt 0:00:24]} Ke8 1-0